fUSD/lending_fUSD_20240419
["ID","MTS","AMOUNT","RATE_DAILY","PERIOD"]
[322916161,1713497454577,-591.01,0.00016438,2]
[322916162,1713497454587,-4197.76,0.00016438,2]
[322916163,1713497454596,-1902.08,0.00016438,2]
[322916164,1713497454606,-500.0,0.00016438,2]
[322916165,1713497454616,-502.51473427,0.00016438,2]
[322916166,1713497454625,-500.0,0.00016438,2]
[322916167,1713497454635,-2067.86,0.00016438,2]
[322916168,1713497454645,-3208.67,0.00016438,2]
[322916169,1713497454655,-5843.55,0.00016438,2]
[322916170,1713497454663,-519.43709655,0.00016438,2]
[322916171,1713497454673,-500.0,0.00016438,2]
[322916172,1713497454682,-500.0,0.00016438,2]
[322916173,1713497454693,-3747.88,0.00016438,2]
[322916174,1713497454703,-2012.47,0.00016438,2]
[322916175,1713497454712,-1110.78,0.00016438,2]
[322916176,1713497454722,-686.67,0.00016438,2]
[322916177,1713497454731,-500.0,0.00016438,2]
[322916178,1713497454745,-1629.22,0.00016438,2]
[322916179,1713497454754,-500.0,0.00016438,2]
[322916180,1713497454763,-302.16066656,0.00016438,2]
[322916181,1713497454778,-500.0,0.00016438,2]
[322916182,1713497454788,-4173.31,0.00016438,2]
[322916183,1713497454797,-500.0,0.00016438,2]
[322916184,1713497454807,-3939.57,0.00016438,2]
[322916185,1713497454817,-4735.31,0.00016438,2]
[322916186,1713497454826,-1802.69,0.00016438,2]
[322916187,1713497454835,-2659.26,0.00016438,2]
[322916188,1713497454845,-1248.12,0.00016438,2]
[322916189,1713497454855,-2602.76,0.00016438,2]
[322916190,1713497454864,-500.0,0.00016438,2]
[322916191,1713497454873,-2472.21,0.00016438,2]
[322916192,1713497455156,-2716.09,0.00016438,2]
[322916193,1713497455166,-500.0,0.00016438,2]
[322916194,1713497455176,-1962.34,0.00016438,2]
[322916195,1713497455186,-972.06,0.00016438,2]
[322916196,1713497455195,-531.27789739,0.00016438,2]
[322916197,1713497455205,-500.0,0.00016438,2]
[322916198,1713497455214,-500.0,0.00016438,2]
[322916199,1713497455224,-500.0,0.00016438,2]
[322916200,1713497455233,-2049.09,0.00016438,2]
[322916201,1713497455244,-616.23,0.00016438,2]
[322916202,1713497455254,-500.0,0.00016438,2]
[322916203,1713497455264,-500.0,0.00016438,2]
[322916204,1713497455273,-500.0,0.00016438,2]
[322916205,1713497455282,-500.0,0.00016438,2]
[322916206,1713497455292,-1055.84,0.00016438,2]
[322916207,1713497455302,-500.0,0.00016438,2]
[322916208,1713497455312,-1610.2,0.00016438,2]
[322916209,1713497455321,-387.70720324,0.00016438,2]
[322916210,1713497455332,-1515.55,0.00016438,2]
[322916211,1713497455343,-500.0,0.00016438,2]
[322916212,1713497455353,-500.0,0.00016438,2]
[322916213,1713497455362,-729.57,0.00016438,2]
[322916214,1713497455371,-500.0,0.00016438,2]
[322916215,1713497455380,-636.36,0.00016438,2]
[322916216,1713497455390,-4002.26,0.00016438,2]
[322916217,1713497455400,-500.0,0.00016438,2]
[322916218,1713497455410,-500.0,0.00016438,2]
[322916219,1713497455418,-500.0,0.00016438,2]
[322916220,1713497455428,-500.0,0.00016438,2]
[322916221,1713497455437,-623.5,0.00016438,2]
[322916222,1713497455447,-500.0,0.00016438,2]
[322916223,1713497455457,-522.38,0.00016438,2]
[322916224,1713497455466,-500.0,0.00016438,2]
[322916225,1713497455476,-500.0,0.00016438,2]
[322916226,1713497455485,-917.66,0.00016438,2]
[322916227,1713497455496,-500.0,0.00016438,2]
[322916228,1713497455506,-500.0,0.00016438,2]
[322916229,1713497455515,-500.0,0.00016438,2]
[322916230,1713497455524,-500.0,0.00016438,2]
[322916231,1713497455534,-500.0,0.00016438,2]
[322916232,1713497455543,-1234.37,0.00016438,2]
[322916233,1713497455552,-500.0,0.00016438,2]
[322916234,1713497455562,-500.0,0.00016438,2]
[322916235,1713497455571,-863.16,0.00016438,2]
[322916236,1713497455582,-1142.78,0.00016438,2]
[322916237,1713497455591,-500.0,0.00016438,2]
[322916238,1713497455600,-564.63,0.00016438,2]
[322916239,1713497455609,-516.67885092,0.00016438,2]
[322916240,1713497455619,-500.0,0.00016438,2]
[322916241,1713497455629,-1430.99,0.00016438,2]
[322916242,1713497455638,-1198.23,0.00016438,2]
[322916243,1713497455647,-1591.66,0.00016438,2]
[322916244,1713497455657,-4325.02,0.00016438,2]
[322916245,1713497455667,-500.0,0.00016438,2]
[322916246,1713497455677,-500.0,0.00016438,2]
[322916247,1713497455687,-500.0,0.00016438,2]
[322916248,1713497455696,-500.0,0.00016438,2]
[322916249,1713497455706,-500.0,0.00016438,2]
[322916250,1713497455716,-500.0,0.00016438,2]
[322916251,1713497455725,-500.0,0.00016438,2]
[322916252,1713497455735,-500.0,0.00016438,2]
[322916253,1713497455746,-2066.69,0.00016438,2]
[322916254,1713497455755,-541.4,0.00016438,2]
[322916255,1713497455766,-500.0,0.00016438,2]
[322916256,1713497455777,-2695.37,0.00016438,2]
[322916257,1713497455786,-2132.63,0.00016438,2]
[322916258,1713497455796,-500.0,0.00016438,2]
[322916259,1713497455805,-622.04,0.00016438,2]
[322916260,1713497455815,-702.96,0.00016438,2]
[322916261,1713497455824,-583.59,0.00016438,2]
[322916262,1713497455834,-500.0,0.00016438,2]
[322916263,1713497455844,-972.28741033,0.00016438,2]
[322916264,1713497455853,-1014.25,0.00016438,2]
[322916265,1713497455863,-507.71768919,0.00016438,2]
[322916266,1713497455872,-1353.74,0.00016438,2]
[322916267,1713497455881,-162.97479026,0.00016438,2]
[322916268,1713497455890,-2322.9,0.00016438,2]
[322916269,1713497455900,-500.0,0.00016438,2]
[322916270,1713497455910,-1495.11,0.00016438,2]
[322916271,1713497455920,-500.0,0.00016438,2]
[322916272,1713497455930,-1930.46,0.00016438,2]
[322916273,1713497455939,-3648.42,0.00016438,2]
[322916274,1713497455948,-4683.53,0.00016438,2]
[322916275,1713497455958,-617.73,0.00016438,2]
[322916276,1713497455968,-500.0,0.00016438,2]
[322916277,1713497455977,-500.0,0.00016438,2]
[322916278,1713497455989,-1453.95,0.00016438,2]
[322916279,1713497455998,-500.0,0.00016438,2]
[322916280,1713497456008,-1075.98,0.00016438,2]
[322916281,1713497456017,-5380.74,0.00016438,2]
[322916282,1713497456027,-500.0,0.00016438,2]
[322916283,1713497456036,-2309.06,0.00016438,2]
[322916284,1713497456045,-998.45,0.00016438,2]
[322916285,1713497456055,-500.0,0.00016438,2]
[322916286,1713497456064,-2979.8,0.00016438,2]
[322916287,1713497456074,-957.08,0.00016438,2]
[322916288,1713497456083,-500.0,0.00016438,2]
[322916289,1713497456093,-500.0,0.00016438,2]
[322916290,1713497456102,-500.0,0.00016438,2]
[322916291,1713497456111,-938.89,0.00016438,2]
[322916292,1713497456120,-500.0,0.00016438,2]
[322916293,1713497456129,-535.16,0.00016438,2]
[322916294,1713497456139,-500.0,0.00016438,2]
[322916295,1713497456148,-500.0,0.00016438,2]
[322916296,1713497456158,-1229.3,0.00016438,2]
[322916297,1713497456167,-601.03,0.00016438,2]
[322916298,1713497456176,-2110.9,0.00016438,2]
[322916299,1713497456185,-763.98,0.00016438,2]
[322916300,1713497456195,-5320.91,0.00016438,2]
[322916301,1713497456204,-2065.39,0.00016438,2]
[322916302,1713497456214,-500.0,0.00016438,2]
[322916303,1713497456223,-586.01,0.00016438,2]
[322916304,1713497456233,-3170.13,0.00016438,2]
[322916305,1713497456245,-4152.81,0.00016438,2]
[322916306,1713497456254,-500.0,0.00016438,2]
[322916307,1713497456263,-2218.25,0.00016438,2]
[322916308,1713497456273,-500.0,0.00016438,2]
[322916309,1713497456282,-1989.64,0.00016438,2]
[322916310,1713497456291,-500.0,0.00016438,2]
[322916311,1713497456301,-607.17,0.00016438,2]
[322916312,1713497456310,-500.0,0.00016438,2]
[322916313,1713497456320,-500.0,0.00016438,2]
[322916314,1713497456329,-500.0,0.00016438,2]
[322916315,1713497456338,-909.86,0.00016438,2]
[322916316,1713497456348,-2777.7,0.00016438,2]
[322916317,1713497456357,-500.0,0.00016438,2]
[322916318,1713497456367,-500.0,0.00016438,2]
[322916319,1713497456377,-647.95,0.00016438,2]
[322916320,1713497456386,-500.0,0.00016438,2]
[322916321,1713497456395,-500.0,0.00016438,2]
[322916322,1713497456405,-2870.21,0.00016438,2]
[322916323,1713497456414,-1528.28,0.00016438,2]
[322916324,1713497456424,-851.1,0.00016438,2]
[322916325,1713497456433,-500.0,0.00016438,2]
[322916326,1713497456442,-500.0,0.00016438,2]
[322916327,1713497456452,-500.0,0.00016438,2]
[322916328,1713497456462,-945.51,0.00016438,2]
[322916329,1713497456472,-1472.94,0.00016438,2]
[322916330,1713497456481,-547.0299458,0.00016438,2]
[322916331,1713497456494,-1444.99,0.00016438,2]
[322916332,1713497456503,-500.0,0.00016438,2]
[322916333,1713497456513,-500.0,0.00016438,2]
[322916334,1713497456523,-1113.55,0.00016438,2]
[322916335,1713497456532,-624.64032249,0.00016438,2]
[322916336,1713497456541,-500.0,0.00016438,2]
[322916337,1713497456550,-500.0,0.00016438,2]
[322916338,1713497456560,-500.0,0.00016438,2]
[322916339,1713497456569,-1941.08,0.00016438,2]
[322916340,1713497456579,-500.0,0.00016438,2]
[322916341,1713497456588,-1364.02,0.00016438,2]
[322916342,1713497456599,-500.0,0.00016438,2]
[322916343,1713497456608,-504.08974197,0.00016438,2]
[322916344,1713497456617,-500.0,0.00016438,2]
[322916345,1713497456627,-1457.6,0.00016438,2]
[322916346,1713497456636,-654.25,0.00016438,2]
[322916347,1713497456645,-568.97,0.00016438,2]
[322916348,1713497456654,-1154.71,0.00016438,2]
[322916349,1713497456664,-500.0,0.00016438,2]
[322916350,1713497456674,-3420.89,0.00016438,2]
[322916351,1713497456683,-500.0,0.00016438,2]
[322916352,1713497456692,-628.11337542,0.00016438,2]
[322916353,1713497456701,-2000.29,0.00016438,2]
[322916354,1713497456710,-500.0,0.00016438,2]
[322916355,1713497456720,-500.0,0.00016438,2]
[322916356,1713497456730,-1690.74,0.00016438,2]
[322916357,1713497456743,-500.0,0.00016438,2]
[322916358,1713497456753,-500.0,0.00016438,2]
[322916359,1713497456765,-1087.47,0.00016438,2]
[322916360,1713497456781,-500.0,0.00016438,2]
[322916361,1713497456791,-500.0,0.00016438,2]
[322916362,1713497456800,-500.0,0.00016438,2]
[322916363,1713497456811,-2744.95,0.00016438,2]
[322916364,1713497456820,-717.3,0.00016438,2]
[322916365,1713497456830,-776.66,0.00016438,2]
[322916366,1713497456839,-776.66,0.00016438,2]
[322916367,1713497456850,-776.66,0.00016438,2]
[322916368,1713497456859,-500.0,0.00016438,2]
[322916369,1713497456868,-776.66,0.00016438,2]
[322916370,1713497456877,-776.66,0.00016438,2]
[322916371,1713497456887,-500.0,0.00016438,2]
[322916372,1713497456896,-513.97,0.00016438,2]
[322916373,1713497456906,-776.66,0.00016438,2]
[322916374,1713497456915,-3039.21,0.00016438,2]
[322916375,1713497456925,-776.66,0.00016438,2]
[322916376,1713497456934,-3024.97,0.00016438,2]
[322916377,1713497456945,-776.66,0.00016438,2]
[322916378,1713497456955,-776.66,0.00016438,2]
[322916379,1713497456964,-776.66,0.00016438,2]
[322916380,1713497456974,-572.17,0.00016438,2]
[322916381,1713497456983,-644.69,0.00016438,2]
[322916382,1713497456995,-776.66,0.00016438,2]
[322916383,1713497457004,-776.66,0.00016438,2]
[322916384,1713497457013,-500.0,0.00016438,2]
[322916385,1713497457023,-1394.99,0.00016438,2]
[322916386,1713497457033,-1394.99,0.00016438,2]
[322916387,1713497457043,-500.0,0.00016438,2]
[322916388,1713497457054,-1394.99,0.00016438,2]
[322916389,1713497457064,-1394.99,0.00016438,2]
[322916390,1713497457073,-1394.99,0.00016438,2]
[322916391,1713497457083,-1394.99,0.00016438,2]
[322916392,1713497457092,-1394.99,0.00016438,2]
[322916393,1713497457102,-1394.99,0.00016438,2]
[322916394,1713497457112,-1394.99,0.00016438,2]
[322916395,1713497457122,-1394.99,0.00016438,2]
[322916396,1713497457131,-1394.99,0.00016438,2]
[322916397,1713497457141,-500.0,0.00016438,2]
[322916398,1713497457150,-1394.99,0.00016438,2]
[322916399,1713497457160,-2343.03,0.00016438,2]
[322916400,1713497457169,-260.84441308,0.00016438,2]
[322916401,1713497457179,-907.43,0.00016438,2]
[322916402,1713497457188,-500.0,0.00016438,2]
[322916403,1713497457198,-1630.83,0.00016438,2]
[322916404,1713497457207,-1734.09,0.00016438,2]
[322916405,1713497457217,-925.04,0.00016438,2]
[322916406,1713497457228,-3291.11,0.00016438,2]
[322916407,1713497457239,-500.0,0.00016438,2]
[322916408,1713497457249,-500.0,0.00016438,2]
[322916409,1713497457258,-743.83,0.00016438,2]
[322916410,1713497457268,-500.0,0.00016438,2]
[322916411,1713497457278,-500.0,0.00016438,2]
[322916412,1713497457287,-500.0,0.00016438,2]
[322916413,1713497457297,-500.0,0.00016438,2]
[322916414,1713497457306,-1336.94,0.00016438,2]
[322916415,1713497457316,-2625.49,0.00016438,2]
[322916416,1713497457325,-1095.85,0.00016438,2]
[322916417,1713497457334,-1831.48,0.00016438,2]
[322916418,1713497457344,-1140.22,0.00016438,2]
[322916419,1713497457353,-1435.96,0.00016438,2]
[322916420,1713497457363,-288.03421983,0.00016438,2]
[322916421,1713497457372,-500.0,0.00016438,2]
[322916422,1713497457382,-500.0,0.00016438,2]
[322916423,1713497457392,-500.0,0.00016438,2]
[322916424,1713497457401,-4136.91,0.00016438,2]
[322916425,1713497457410,-1119.46,0.00016438,2]
[322916426,1713497457419,-1161.1,0.00016438,2]
[322916427,1713497457429,-1046.56929903,0.00016438,2]
[322916428,1713497457575,-161.39070097,0.00016438,2]
[322916429,1713497457585,-500.0,0.00016438,2]
[322916430,1713497457594,-500.0,0.00016438,2]
[322916431,1713497457603,-3742.88,0.00016438,2]
[322916432,1713497457613,-500.0,0.00016438,2]
[322916433,1713497457622,-500.0,0.00016438,2]
[322916434,1713497457631,-261.97227436,0.00016438,2]
[322916435,1713497457641,-1349.69,0.00016438,2]
[322916436,1713497457650,-500.0,0.00016438,2]
[322916437,1713497457659,-500.0,0.00016438,2]
[322916438,1713497457669,-500.0,0.00016438,2]
[322916439,1713497457679,-500.0,0.00016438,2]
[322916440,1713497457688,-1269.38,0.00016438,2]
[322916441,1713497457698,-500.0,0.00016438,2]
[322916442,1713497457707,-1095.01,0.00016438,2]
[322916443,1713497457717,-500.0,0.00016438,2]
[322916444,1713497457726,-500.0,0.00016438,2]
[322916445,1713497457735,-2628.83,0.00016438,2]
[322916446,1713497457751,-500.0,0.00016438,2]
[322916447,1713497457761,-555.10059383,0.00016438,2]
[322916448,1713497457774,-1659.0,0.00016438,2]
[322916449,1713497457784,-1375.09,0.00016438,2]
[322916450,1713497457793,-500.0,0.00016438,2]
[322916451,1713497457803,-3082.91,0.00016438,2]
[322916452,1713497457813,-500.0,0.00016438,2]
[322916453,1713497457823,-2859.47,0.00016438,2]
[322916454,1713497457833,-2796.2,0.00016438,2]
[322916455,1713497457848,-980.46,0.00016438,2]
[322916456,1713497457858,-500.0,0.00016438,2]
[322916457,1713497457868,-500.0,0.00016438,2]
[322916458,1713497457878,-1370.93,0.00016438,2]
[322916459,1713497457887,-500.0,0.00016438,2]
[322916460,1713497457897,-500.0,0.00016438,2]
[322916461,1713497457907,-500.0,0.00016438,2]
[322916462,1713497457916,-500.0,0.00016438,2]
[322916463,1713497457926,-1247.29,0.00016438,2]
[322916464,1713497457936,-501.01566702,0.00016438,2]
[322916465,1713497457946,-677.96,0.00016438,2]
[322916466,1713497457955,-537.38,0.00016438,2]
[322916467,1713497457965,-500.0,0.00016438,2]
[322916468,1713497457974,-500.0,0.00016438,2]
[322916469,1713497457983,-4159.1,0.00016438,2]
[322916470,1713497457997,-1085.08,0.00016438,2]
[322916471,1713497458006,-7837.12,0.00016438,2]
[322916472,1713497458016,-500.0,0.00016438,2]
[322916473,1713497458025,-2841.77,0.00016438,2]
[322916474,1713497458035,-1032.22,0.00016438,2]
[322916475,1713497458044,-3599.74,0.00016438,2]
[322916476,1713497458054,-500.0,0.00016438,2]
[322916477,1713497458064,-500.0,0.00016438,2]
[322916478,1713497458074,-500.0,0.00016438,2]
[322916479,1713497458083,-2597.5,0.00016438,2]
[322916480,1713497458093,-500.0,0.00016438,2]
[322916481,1713497458102,-806.87,0.00016438,2]
[322916482,1713497458112,-1177.25,0.00016438,2]
[322916483,1713497458122,-500.0,0.00016438,2]
[322916484,1713497458131,-500.0,0.00016438,2]
[322916485,1713497458143,-500.0,0.00016438,2]
[322916486,1713497458152,-2427.48,0.00016438,2]
[322916487,1713497458162,-2621.49,0.00016438,2]
[322916488,1713497458172,-500.0,0.00016438,2]
[322916489,1713497458182,-1532.48,0.00016438,2]
[322916490,1713497458191,-655.64,0.00016438,2]
[322916491,1713497458200,-2648.83,0.00016438,2]
[322916492,1713497458209,-2752.75,0.00016438,2]
[322916493,1713497458219,-536.29,0.00016438,2]
[322916494,1713497458229,-816.53,0.00016438,2]
[322916495,1713497458241,-500.0,0.00016438,2]
[322916496,1713497458251,-2719.87,0.00016438,2]
[322916497,1713497458260,-689.89,0.00016438,2]
[322916498,1713497458270,-430.91136002,0.00016438,2]
[322916499,1713497458279,-500.0,0.00016438,2]
[322916500,1713497458289,-2069.45,0.00016438,2]
[322916501,1713497458299,-500.0,0.00016438,2]
[322916502,1713497458309,-500.0,0.00016438,2]
[322916503,1713497458318,-500.0,0.00016438,2]
[322916504,1713497458327,-500.0,0.00016438,2]
[322916505,1713497458336,-500.0,0.00016438,2]
[322916506,1713497458345,-11472.97,0.00016438,2]
[322916507,1713497458355,-500.0,0.00016438,2]
[322916508,1713497458364,-540.74013701,0.00016438,2]
[322916509,1713497458374,-3351.73,0.00016438,2]
[322916510,1713497458384,-1006.91,0.00016438,2]
[322916511,1713497458393,-500.0,0.00016438,2]
[322916512,1713497458403,-500.0,0.00016438,2]
[322916513,1713497458412,-500.0,0.00016438,2]
[322916514,1713497458422,-5120.31,0.00016438,2]
[322916515,1713497458432,-500.0,0.00016438,2]
[322916516,1713497458442,-500.0,0.00016438,2]
[322916517,1713497458451,-500.0,0.00016438,2]
[322916518,1713497458461,-454.643947,0.00016438,2]
[322916519,1713497458470,-500.0,0.00016438,2]
[322916520,1713497458479,-1171.7,0.00016438,2]
[322916521,1713497458492,-500.0,0.00016438,2]
[322916522,1713497458502,-880.1,0.00016438,2]
[322916523,1713497458511,-2036.4,0.00016438,2]
[322916524,1713497458521,-4639.74,0.00016438,2]
[322916525,1713497458530,-299.97548392,0.00016438,2]
[322916526,1713497458540,-1640.18,0.00016438,2]
[322916527,1713497458549,-2462.28,0.00016438,2]
[322916528,1713497458559,-500.0,0.00016438,2]
[322916529,1713497458568,-500.0,0.00016438,2]
[322916530,1713497458578,-500.0,0.00016438,2]
[322916531,1713497458587,-500.0,0.00016438,2]
[322916532,1713497458596,-500.0,0.00016438,2]
[322916533,1713497458606,-753.62,0.00016438,2]
[322916534,1713497458615,-500.0,0.00016438,2]
[322916535,1713497458625,-500.0,0.00016438,2]
[322916536,1713497458635,-3404.94,0.00016438,2]
[322916537,1713497458644,-1789.59,0.00016438,2]
[322916538,1713497458653,-500.0,0.00016438,2]
[322916539,1713497458663,-500.0,0.00016438,2]
[322916540,1713497458672,-500.0,0.00016438,2]
[322916541,1713497458681,-1015.67,0.00016438,2]
[322916542,1713497458690,-1657.23,0.00016438,2]
[322916543,1713497458699,-600.08,0.00016438,2]
[322916544,1713497458709,-524.71,0.00016438,2]
[322916545,1713497458718,-500.0,0.00016438,2]
[322916546,1713497458727,-500.0,0.00016438,2]
[322916547,1713497458736,-4834.51,0.00016438,2]
[322916548,1713497458751,-5096.05,0.00016438,2]
[322916549,1713497458765,-156.93218218,0.00016438,2]
[322916550,1713497459054,-2417.05,0.00016438,2]
[322916551,1713497459065,-500.0,0.00016438,2]
[322916552,1713497459075,-500.0,0.00016438,2]
[322916553,1713497459088,-1225.37,0.00016438,2]
[322916554,1713497459099,-500.0,0.00016438,2]
[322916555,1713497459109,-874.48,0.00016438,2]
[322916556,1713497459120,-500.0,0.00016438,2]
[322916557,1713497459129,-1811.26,0.00016438,2]
[322916558,1713497459139,-500.0,0.00016438,2]
[322916559,1713497459149,-500.0,0.00016438,2]
[322916560,1713497459160,-1944.98,0.00016438,2]
[322916561,1713497459170,-500.0,0.00016438,2]
[322916562,1713497459180,-563.14,0.00016438,2]
[322916563,1713497459190,-3818.64,0.00016438,2]
[322916564,1713497459200,-525.02271148,0.00016438,2]
[322916565,1713497459209,-500.0,0.00016438,2]
[322916566,1713497459219,-778.38,0.00016438,2]
[322916567,1713497459229,-935.29,0.00016438,2]
[322916568,1713497459241,-500.0,0.00016438,2]
[322916569,1713497459251,-1781.84,0.00016438,2]
[322916570,1713497459260,-500.0,0.00016438,2]
[322916571,1713497459269,-14711.17,0.00016438,2]
[322916572,1713497459279,-1016.04,0.00016438,2]
[322916573,1713497459289,-6551.52,0.00016438,2]
[322916574,1713497459298,-500.0,0.00016438,2]
[322916575,1713497459307,-639.59,0.00016438,2]
[322916576,1713497459316,-5153.33,0.00016438,2]
[322916577,1713497459325,-1693.15,0.00016438,2]
[322916578,1713497459335,-500.0,0.00016438,2]
[322916579,1713497459345,-500.0,0.00016438,2]
[322916580,1713497459354,-5459.57,0.00016438,2]
[322916581,1713497459363,-500.0,0.00016438,2]
[322916582,1713497459373,-500.0,0.00016438,2]
[322916583,1713497459383,-601.41,0.00016438,2]
[322916584,1713497459393,-1988.34,0.00016438,2]
[322916585,1713497459403,-1006.62,0.00016438,2]
[322916586,1713497459412,-27054.81620042,0.00016438,2]
[322916587,1713497459432,-12633.59379958,0.00016438,2]
[322916588,1713497459441,-500.0,0.00016438,2]
[322916589,1713497459451,-171.20946506,0.00016438,2]
[322916590,1713497459478,-708.61053494,0.00016438,2]
[322916591,1713497459487,-642.24,0.00016438,2]
[322916592,1713497459499,-785.07,0.00016438,2]
[322916593,1713497459509,-711.61,0.00016438,2]
[322916594,1713497459518,-1530.9,0.00016438,2]
[322916595,1713497459528,-7060.09,0.00016438,2]
[322916596,1713497459537,-500.0,0.00016438,2]
[322916597,1713497459546,-500.0,0.00016438,2]
[322916598,1713497459555,-500.0,0.00016438,2]
[322916599,1713497459564,-500.0,0.00016438,2]
[322916600,1713497459573,-1256.51,0.00016438,2]
[322916601,1713497459583,-500.0,0.00016438,2]
[322916602,1713497459592,-500.0,0.00016438,2]
[322916603,1713497459601,-500.0,0.00016438,2]
[322916604,1713497459611,-7471.49,0.00016438,2]
[322916605,1713497459620,-3254.09,0.00016438,2]
[322916606,1713497459629,-615.13,0.00016438,2]
[322916607,1713497459639,-500.0,0.00016438,2]
[322916608,1713497459648,-500.0,0.00016438,2]
[322916609,1713497459658,-27128.91,0.00016438,2]
[322916610,1713497459668,-1682.39,0.00016438,2]
[322916611,1713497459678,-2607.93,0.00016438,2]
[322916612,1713497459688,-500.0,0.00016438,2]
[322916613,1713497459699,-664.57,0.00016438,2]
[322916614,1713497459709,-813.95431005,0.00016438,2]
[322916615,1713497461187,-1898.47568995,0.00016438,2]
[322916616,1713497461203,-6776.81316079,0.00016438,2]
[322916617,1713497461256,-7359.9518234,0.00016238,2]
[322916618,1713497542431,200.0,0.00016157,30]
[322916619,1713497542486,200.0,0.00016157,30]
[322916620,1713497542577,200.0,0.00016157,30]
[322916621,1713497542619,200.0,0.00016157,30]
[322916622,1713497542672,200.0,0.00016157,30]
[322916623,1713497604870,152.36,0.0001611,15]
[322916624,1713497636133,23890.0,0.00015472,2]
[322916625,1713497674881,265.36,0.00015454,2]
[322916626,1713497684228,200.0,0.00022288,30]
[322916627,1713497684275,200.0,0.00022288,30]
[322916628,1713497684371,200.0,0.00022288,30]
[322916629,1713497684503,200.0,0.00022288,30]
[322916630,1713497684547,200.0,0.00022288,30]
[322916631,1713497729501,471.99,0.00013498,2]
[322916632,1713497738826,534.48,0.00015403,2]
[322916633,1713497748718,200.0,0.00015403,2]
[322916634,1713497799585,668.53,0.00015398,2]
[322916635,1713497799828,668.53,0.00015402,2]
[322916636,1713497800217,668.53,0.00015406,2]
[322916637,1713497801661,668.53,0.0001541,2]
[322916638,1713497801830,668.53,0.00015414,2]
[322916639,1713497802022,668.53,0.00015418,2]
[322916640,1713497802165,668.53,0.00015422,2]
[322916641,1713497802258,668.53,0.00015426,2]
[322916642,1713497802367,668.53,0.0001543,2]
[322916643,1713497802570,668.53,0.00015434,2]
[322916644,1713497802656,668.53,0.00015438,2]
[322916645,1713497802825,668.53,0.00015442,2]
[322916646,1713497802989,668.53,0.00015446,2]
[322916647,1713497803114,668.53,0.0001545,2]
[322916648,1713497803272,668.53,0.00015454,2]
[322916649,1713497803501,668.53,0.00015459,2]
[322916650,1713497803706,668.53,0.00015463,2]
[322916651,1713497803885,668.53,0.00015467,2]
[322916652,1713497804120,668.53,0.00015471,2]
[322916653,1713497804305,668.53,0.00015475,2]
[322916654,1713497826665,200.0,0.00022177,30]
[322916655,1713497826782,200.0,0.00022177,30]
[322916656,1713497826827,200.0,0.00022177,30]
[322916657,1713497826857,200.0,0.00022177,30]
[322916658,1713497826895,200.0,0.00022177,30]
[322916659,1713497879958,500.0,0.00015335,2]
[322916660,1713497893430,515.5084505,0.00015503,2]